[Event "Titled Tuesday Blitz April 05 Early 2022"]
[White "Sovetbekova, Nurai"]
[Black "Mikhnenko, Alexander"]
[WhiteFideId "13801910"]
[BlackFideId "34143014"]
[WhiteElo "1538"]
[BlackElo "2117"]
[Result "1/2-1/2"]
[Round "08"]
[TimeControl "180+1"]
[Date "2022.04.05"]
[WhiteClock "0:00:07"]
[BlackClock "0:01:18"]

1. d4 {[%clk 0:03:00]}  d5 {[%clk 0:02:59]} 2. c4 {[%clk 0:03:00]}  c6 {[%clk 0:02:59]} 3. Nf3 {[%clk 0:03:00]}  Nf6 {[%clk 0:02:58]} 4. g3 {[%clk 0:03:00]}  Bf5 {[%clk 0:02:58]} 5. Bg2 {[%clk 0:03:00]}  e6 {[%clk 0:02:57]} 6. Qb3 {[%clk 0:02:58]}  Qb6 {[%clk 0:02:56]} 7. c5 {[%clk 0:02:58]}  Qxb3 {[%clk 0:02:55]} 8. axb3 {[%clk 0:02:58]}  a6 {[%clk 0:02:56]} 9. Nc3 {[%clk 0:02:56]}  Nbd7 {[%clk 0:02:53]} 10. b4 {[%clk 0:02:52]}  Rc8 {[%clk 0:02:32]} 11. Nd2 {[%clk 0:02:31]}  Be7 {[%clk 0:02:20]} 12. Nb3 {[%clk 0:02:27]}  Bd8 {[%clk 0:02:12]} 13. Na5 {[%clk 0:02:18]}  Bxa5 {[%clk 0:02:10]} 14. bxa5 {[%clk 0:02:18]}  O-O {[%clk 0:02:10]} 15. O-O {[%clk 0:02:16]}  Ne4 {[%clk 0:02:08]} 16. Nxe4 {[%clk 0:02:10]}  Bxe4 {[%clk 0:02:09]} 17. Bxe4 {[%clk 0:02:01]}  dxe4 {[%clk 0:02:10]} 18. Ra3 {[%clk 0:02:00]}  Nf6 {[%clk 0:02:04]} 19. Rb3 {[%clk 0:01:55]}  Rc7 {[%clk 0:02:04]} 20. Bf4 {[%clk 0:01:53]}  Rd7 {[%clk 0:02:05]} 21. Bd6 {[%clk 0:01:50]}  Rfd8 {[%clk 0:02:03]} 22. Rd1 {[%clk 0:01:30]}  Ne8 {[%clk 0:01:55]} 23. Bf4 {[%clk 0:01:27]}  f5 {[%clk 0:01:51]} 24. Be5 {[%clk 0:01:22]}  Kf7 {[%clk 0:01:50]} 25. Rc1 {[%clk 0:01:20]}  Nf6 {[%clk 0:01:49]} 26. Bxf6 {[%clk 0:01:05]}  Kxf6 {[%clk 0:01:48]} 27. e3 {[%clk 0:01:06]}  Re8 {[%clk 0:01:47]} 28. Rc4 {[%clk 0:01:03]}  Ree7 {[%clk 0:01:48]} 29. Kf1 {[%clk 0:01:00]}  g5 {[%clk 0:01:48]} 30. Ke2 {[%clk 0:00:55]}  h5 {[%clk 0:01:49]} 31. f3 {[%clk 0:00:51]}  exf3+ {[%clk 0:01:46]} 32. Kxf3 {[%clk 0:00:51]}  Rh7 {[%clk 0:01:45]} 33. h4 {[%clk 0:00:44]}  gxh4 {[%clk 0:01:43]} 34. gxh4 {[%clk 0:00:45]}  Rhg7 {[%clk 0:01:44]} 35. Rcb4 {[%clk 0:00:45]}  e5 {[%clk 0:01:44]} 36. dxe5+ {[%clk 0:00:36]}  Kxe5 {[%clk 0:01:45]} 37. Rf4 {[%clk 0:00:36]}  Rg4 {[%clk 0:01:44]} 38. Rbb4 {[%clk 0:00:32]}  Rxf4+ {[%clk 0:01:44]} 39. Rxf4 {[%clk 0:00:29]}  Rd5 {[%clk 0:01:42]} 40. Rb4 {[%clk 0:00:17]}  Rxc5 {[%clk 0:01:40]} 41. Rxb7 {[%clk 0:00:17]}  Rb5 {[%clk 0:01:41]} 42. Rh7 {[%clk 0:00:13]}  Rxb2 {[%clk 0:01:36]} 43. Rxh5 {[%clk 0:00:13]}  c5 {[%clk 0:01:36]} 44. Rh6 {[%clk 0:00:13]}  Rb4 {[%clk 0:01:36]} 45. h5 {[%clk 0:00:10]}  Rh4 {[%clk 0:01:36]} 46. Rxa6 {[%clk 0:00:08]}  Rh3+ {[%clk 0:01:33]} 47. Ke2 {[%clk 0:00:07]}  Rxh5 {[%clk 0:01:34]} 48. Rc6 {[%clk 0:00:07]}  Kd5 {[%clk 0:01:32]} 49. Rc8 {[%clk 0:00:06]}  Rh2+ {[%clk 0:01:31]} 50. Kd3 {[%clk 0:00:06]}  Ra2 {[%clk 0:01:32]} 51. Rd8+ {[%clk 0:00:06]}  Ke5 {[%clk 0:01:31]} 52. Re8+ {[%clk 0:00:06]}  Kd5 {[%clk 0:01:26]} 53. Ra8 {[%clk 0:00:05]}  Ra3+ {[%clk 0:01:25]} 54. Ke2 {[%clk 0:00:06]}  c4 {[%clk 0:01:19]} 55. a6 {[%clk 0:00:06]}  Kc6 {[%clk 0:01:19]} 56. Rc8+ {[%clk 0:00:05]}  Kb6 {[%clk 0:01:17]} 57. Rxc4 {[%clk 0:00:04]}  Kxa6 {[%clk 0:01:15]} 58. Rc5 {[%clk 0:00:04]}  Kb6 {[%clk 0:01:15]} 59. Rxf5 {[%clk 0:00:04]}  Kc6 {[%clk 0:01:16]} 60. Kf3 {[%clk 0:00:04]}  Kd7 {[%clk 0:01:17]} 61. Kf4 {[%clk 0:00:04]}  Ke7 {[%clk 0:01:17]} 62. e4 {[%clk 0:00:05]}  Ke8 {[%clk 0:01:18]} 63. Rb5 {[%clk 0:00:05]}  Ra6 {[%clk 0:01:18]} 64. Rb7 {[%clk 0:00:05]}  Rc6 {[%clk 0:01:18]} 65. Kf5 {[%clk 0:00:05]}  Ra6 {[%clk 0:01:19]} 66. e5 {[%clk 0:00:04]}  Rc6 {[%clk 0:01:19]} 67. Rb8+ {[%clk 0:00:04]}  Ke7 {[%clk 0:01:19]} 68. Rh8 {[%clk 0:00:04]}  Ra6 {[%clk 0:01:19]} 69. Rh7+ {[%clk 0:00:03]}  Ke8 {[%clk 0:01:19]} 70. Rh1 {[%clk 0:00:02]}  Rb6 {[%clk 0:01:20]} 71. Rh8+ {[%clk 0:00:03]}  Ke7 {[%clk 0:01:19]} 72. Rh7+ {[%clk 0:00:03]}  Ke8 {[%clk 0:01:20]} 73. Rg7 {[%clk 0:00:04]}  Ra6 {[%clk 0:01:20]} 74. Rg5 {[%clk 0:00:04]}  Rb6 {[%clk 0:01:20]} 75. e6 {[%clk 0:00:05]}  Rb1 {[%clk 0:01:20]} 76. Kf6 {[%clk 0:00:05]}  Rf1+ {[%clk 0:01:19]} 77. Kg6 {[%clk 0:00:06]}  Ke7 {[%clk 0:01:19]} 78. Rf5 {[%clk 0:00:06]}  Rg1+ {[%clk 0:01:18]} 79. Rg5 {[%clk 0:00:06]}  Rxg5+ {[%clk 0:01:17]} 80. Kxg5 {[%clk 0:00:07]}  Kxe6 {[%clk 0:01:18]} 1/2-1/2


[Site "https://www.chess.com"]

[Event "Titled Tuesday Blitz April 05 Early 2022"]
[White "Srebrnic, Marko"]
[Black "Vasquez Schroeder, Rodrigo"]
[WhiteFideId "14603616"]
[BlackFideId "3400042"]
[WhiteElo "2340"]
[BlackElo "2561"]
[Result "0-1"]
[Round "08"]
[TimeControl "180+1"]
[Date "2022.04.05"]
[WhiteClock "0:00:02"]
[BlackClock "0:01:19"]

1. e4 {[%clk 0:03:00]}  c5 {[%clk 0:02:59]} 2. Nf3 {[%clk 0:02:59]}  d6 {[%clk 0:02:59]} 3. d4 {[%clk 0:03:00]}  cxd4 {[%clk 0:03:00]} 4. Nxd4 {[%clk 0:03:01]}  Nf6 {[%clk 0:03:01]} 5. Nc3 {[%clk 0:03:02]}  a6 {[%clk 0:03:01]} 6. Bc4 {[%clk 0:03:02]}  e6 {[%clk 0:03:01]} 7. O-O {[%clk 0:03:02]}  b5 {[%clk 0:03:02]} 8. Bb3 {[%clk 0:03:03]}  Be7 {[%clk 0:03:02]} 9. Qf3 {[%clk 0:03:03]}  Qb6 {[%clk 0:03:03]} 10. Bg5 {[%clk 0:03:02]}  Nbd7 {[%clk 0:03:02]} 11. Rad1 {[%clk 0:03:02]}  Nc5 {[%clk 0:03:00]} 12. Rfe1 {[%clk 0:02:53]}  O-O {[%clk 0:02:57]} 13. e5 {[%clk 0:02:47]}  Bb7 {[%clk 0:02:53]} 14. exf6 {[%clk 0:02:40]}  Bxf3 {[%clk 0:02:52]} 15. fxe7 {[%clk 0:02:41]}  Bxd1 {[%clk 0:02:52]} 16. exf8=Q+ {[%clk 0:02:40]}  Rxf8 {[%clk 0:02:51]} 17. Rxd1 {[%clk 0:02:40]}  d5 {[%clk 0:02:45]} 18. a3 {[%clk 0:02:34]}  h6 {[%clk 0:02:40]} 19. Be3 {[%clk 0:02:31]}  Qc7 {[%clk 0:02:39]} 20. Ba2 {[%clk 0:02:29]}  Rd8 {[%clk 0:02:38]} 21. f4 {[%clk 0:02:03]}  f5 {[%clk 0:02:31]} 22. Nf3 {[%clk 0:01:49]}  Ne4 {[%clk 0:02:12]} 23. Nxe4 {[%clk 0:01:34]}  fxe4 {[%clk 0:02:08]} 24. Nd4 {[%clk 0:01:31]}  Rd6 {[%clk 0:02:01]} 25. c3 {[%clk 0:01:24]}  Kh7 {[%clk 0:01:59]} 26. Bb1 {[%clk 0:01:19]}  g6 {[%clk 0:01:58]} 27. g4 {[%clk 0:01:13]}  Qf7 {[%clk 0:01:55]} 28. Rf1 {[%clk 0:01:11]}  Rd8 {[%clk 0:01:48]} 29. Nc6 {[%clk 0:01:06]}  Rc8 {[%clk 0:01:43]} 30. Ne5 {[%clk 0:01:07]}  Qe7 {[%clk 0:01:43]} 31. Kg2 {[%clk 0:01:02]}  a5 {[%clk 0:01:41]} 32. Kg3 {[%clk 0:00:47]}  b4 {[%clk 0:01:40]} 33. axb4 {[%clk 0:00:47]}  axb4 {[%clk 0:01:41]} 34. Bd4 {[%clk 0:00:47]}  bxc3 {[%clk 0:01:34]} 35. bxc3 {[%clk 0:00:48]}  Qa3 {[%clk 0:01:33]} 36. Kh4 {[%clk 0:00:21]}  Rxc3 {[%clk 0:01:30]} 37. Bxc3 {[%clk 0:00:21]}  Qxc3 {[%clk 0:01:31]} 38. h3 {[%clk 0:00:10]}  g5+ {[%clk 0:01:23]} 39. fxg5 {[%clk 0:00:08]}  hxg5+ {[%clk 0:01:23]} 40. Kh5 {[%clk 0:00:03]}  Qxh3+ {[%clk 0:01:22]} 41. Kxg5 {[%clk 0:00:02]}  Qh6# {[%clk 0:01:19]} 0-1


[Site "https://www.chess.com"]

[Event "Titled Tuesday Blitz April 05 Early 2022"]
[White "Tuleyeva-Aketayeva, Dana"]
[Black "Dilmukhametov, Artur"]
[WhiteFideId "13701932"]
[BlackFideId "24179922"]
[WhiteElo "1875"]
[BlackElo "2244"]
[Result "1-0"]
[Round "08"]
[TimeControl "180+1"]
[Date "2022.04.05"]
[WhiteClock "0:00:58"]
[BlackClock "0:00:52"]

1. d4 {[%clk 0:03:00]}  Nf6 {[%clk 0:02:58]} 2. Nf3 {[%clk 0:03:01]}  g6 {[%clk 0:02:57]} 3. g3 {[%clk 0:03:01]}  Bg7 {[%clk 0:02:58]} 4. Bg2 {[%clk 0:03:01]}  d6 {[%clk 0:02:58]} 5. O-O {[%clk 0:03:02]}  O-O {[%clk 0:02:59]} 6. c4 {[%clk 0:03:03]}  Na6 {[%clk 0:02:57]} 7. Nc3 {[%clk 0:03:03]}  c5 {[%clk 0:02:56]} 8. e3 {[%clk 0:02:53]}  cxd4 {[%clk 0:02:49]} 9. exd4 {[%clk 0:02:52]}  Rb8 {[%clk 0:02:48]} 10. Nb5 {[%clk 0:02:45]}  d5 {[%clk 0:02:43]} 11. c5 {[%clk 0:02:35]}  b6 {[%clk 0:02:22]} 12. Nxa7 {[%clk 0:02:28]}  bxc5 {[%clk 0:02:20]} 13. Nc6 {[%clk 0:02:28]}  Qb6 {[%clk 0:02:15]} 14. Nxb8 {[%clk 0:02:26]}  Qxb8 {[%clk 0:02:14]} 15. dxc5 {[%clk 0:02:20]}  Nxc5 {[%clk 0:02:14]} 16. Nd2 {[%clk 0:02:06]}  Bb7 {[%clk 0:02:13]} 17. Nb3 {[%clk 0:02:05]}  Nfe4 {[%clk 0:02:10]} 18. Nxc5 {[%clk 0:01:58]}  Nxc5 {[%clk 0:02:10]} 19. Be3 {[%clk 0:01:50]}  Qc7 {[%clk 0:02:03]} 20. Rc1 {[%clk 0:01:49]}  Qd6 {[%clk 0:02:02]} 21. Bxc5 {[%clk 0:01:48]}  Qa6 {[%clk 0:01:54]} 22. Bxe7 {[%clk 0:01:44]}  Re8 {[%clk 0:01:53]} 23. Ba3 {[%clk 0:01:39]}  Rd8 {[%clk 0:01:50]} 24. Re1 {[%clk 0:01:31]}  h5 {[%clk 0:01:48]} 25. h4 {[%clk 0:01:30]}  Qb6 {[%clk 0:01:47]} 26. Qb3 {[%clk 0:01:27]}  Qxb3 {[%clk 0:01:45]} 27. axb3 {[%clk 0:01:28]}  Rd7 {[%clk 0:01:41]} 28. b4 {[%clk 0:01:24]}  d4 {[%clk 0:01:40]} 29. Bxb7 {[%clk 0:01:24]}  Rxb7 {[%clk 0:01:39]} 30. Red1 {[%clk 0:01:21]}  Rb5 {[%clk 0:01:34]} 31. Rc5 {[%clk 0:01:21]}  Rxc5 {[%clk 0:01:32]} 32. bxc5 {[%clk 0:01:21]}  Be5 {[%clk 0:01:31]} 33. c6 {[%clk 0:01:18]}  Kg7 {[%clk 0:01:28]} 34. Bc5 {[%clk 0:01:17]}  Kf6 {[%clk 0:01:25]} 35. Bb6 {[%clk 0:01:16]}  Ke6 {[%clk 0:01:24]} 36. Bxd4 {[%clk 0:01:07]}  Bd6 {[%clk 0:01:13]} 37. b4 {[%clk 0:01:00]}  Ke7 {[%clk 0:01:01]} 38. Bc5 {[%clk 0:00:56]}  Bxc5 {[%clk 0:00:53]} 39. bxc5 {[%clk 0:00:57]}  Ke8 {[%clk 0:00:52]} 40. c7 {[%clk 0:00:58]} 1-0


[Site "https://www.chess.com"]

[Event "Titled Tuesday Blitz April 05 Early 2022"]
[White "Voege, Tobias"]
[Black "Sergienko, Sergey"]
[WhiteFideId "1270513"]
[BlackFideId "4115791"]
[WhiteElo "2297"]
[BlackElo "2193"]
[Result "1-0"]
[Round "08"]
[TimeControl "180+1"]
[Date "2022.04.05"]
[WhiteClock "0:00:15"]
[BlackClock "0:00:01"]

1. c4 {[%clk 0:03:00]}  c5 {[%clk 0:02:59]} 2. Nc3 {[%clk 0:03:00]}  Nf6 {[%clk 0:02:57]} 3. g3 {[%clk 0:03:00]}  d5 {[%clk 0:02:57]} 4. cxd5 {[%clk 0:03:00]}  Nxd5 {[%clk 0:02:57]} 5. Bg2 {[%clk 0:03:00]}  Nc7 {[%clk 0:02:56]} 6. Nf3 {[%clk 0:02:59]}  Nc6 {[%clk 0:02:56]} 7. O-O {[%clk 0:02:56]}  e5 {[%clk 0:02:57]} 8. d3 {[%clk 0:02:54]}  Be7 {[%clk 0:02:55]} 9. a3 {[%clk 0:02:54]}  f6 {[%clk 0:02:48]} 10. Rb1 {[%clk 0:02:49]}  Be6 {[%clk 0:02:38]} 11. Be3 {[%clk 0:02:40]}  O-O {[%clk 0:02:35]} 12. Nd2 {[%clk 0:02:39]}  Qd7 {[%clk 0:02:33]} 13. b4 {[%clk 0:02:21]}  cxb4 {[%clk 0:02:32]} 14. axb4 {[%clk 0:02:21]}  Nxb4 {[%clk 0:02:25]} 15. Bxb7 {[%clk 0:02:18]}  Rab8 {[%clk 0:02:25]} 16. Bg2 {[%clk 0:02:18]}  a5 {[%clk 0:02:15]} 17. Nb3 {[%clk 0:02:09]}  Ncd5 {[%clk 0:01:55]} 18. Nxd5 {[%clk 0:02:04]}  Bxd5 {[%clk 0:01:44]} 19. Bxd5+ {[%clk 0:01:41]}  Qxd5 {[%clk 0:01:43]} 20. Nd2 {[%clk 0:01:41]}  Nc6 {[%clk 0:01:34]} 21. Qa4 {[%clk 0:01:37]}  Bb4 {[%clk 0:01:30]} 22. Nc4 {[%clk 0:01:26]}  e4 {[%clk 0:01:11]} 23. Nb6 {[%clk 0:01:13]}  Qe6 {[%clk 0:01:10]} 24. dxe4 {[%clk 0:01:12]}  Qxe4 {[%clk 0:01:06]} 25. Nd7 {[%clk 0:01:08]}  Ne5 {[%clk 0:00:41]} 26. Nxf8 {[%clk 0:00:57]}  Rxf8 {[%clk 0:00:40]} 27. Bc5 {[%clk 0:00:56]}  Qxe2 {[%clk 0:00:37]} 28. Bxf8 {[%clk 0:00:51]}  Nf3+ {[%clk 0:00:36]} 29. Kg2 {[%clk 0:00:52]}  Nh4+ {[%clk 0:00:35]} 30. Kg1 {[%clk 0:00:45]}  Nf3+ {[%clk 0:00:32]} 31. Kh1 {[%clk 0:00:36]}  Nd4 {[%clk 0:00:22]} 32. f3 {[%clk 0:00:20]}  Kxf8 {[%clk 0:00:20]} 33. Qd1 {[%clk 0:00:17]}  Qe3 {[%clk 0:00:18]} 34. Rc1 {[%clk 0:00:18]}  Bd2 {[%clk 0:00:16]} 35. Rc8+ {[%clk 0:00:17]}  Kf7 {[%clk 0:00:15]} 36. Rd8 {[%clk 0:00:17]}  Bc3 {[%clk 0:00:14]} 37. Qc1 {[%clk 0:00:17]}  Qd3 {[%clk 0:00:12]} 38. Qd1 {[%clk 0:00:15]}  Qe3 {[%clk 0:00:12]} 39. Rb8 {[%clk 0:00:14]}  a4 {[%clk 0:00:11]} 40. Rb7+ {[%clk 0:00:14]}  Kg6 {[%clk 0:00:09]} 41. Qxa4 {[%clk 0:00:15]}  Nxf3 {[%clk 0:00:05]} 42. Qc2+ {[%clk 0:00:15]}  Kh6 {[%clk 0:00:03]} 43. Qf2 {[%clk 0:00:15]}  Qxf2 {[%clk 0:00:01]} 44. Rxf2 {[%clk 0:00:16]}  Ng5 {[%clk 0:00:01]} 45. Rc2 {[%clk 0:00:15]} 1-0


[Site "https://www.chess.com"]

[Event "Titled Tuesday Blitz April 05 Early 2022"]
[White "volunteers1998"]
[Black "Iskusnyh, Sergei"]
[BlackFideId "4120027"]
[WhiteElo "2316"]
[BlackElo "2492"]
[Result "1/2-1/2"]
[Round "08"]
[TimeControl "180+1"]
[Date "2022.04.05"]
[WhiteClock "0:00:46"]
[BlackClock "0:00:06"]

1. e4 {[%clk 0:02:59]}  e6 {[%clk 0:02:59]} 2. Nf3 {[%clk 0:02:59]}  d5 {[%clk 0:02:59]} 3. Nc3 {[%clk 0:02:58]}  Nf6 {[%clk 0:02:58]} 4. e5 {[%clk 0:02:57]}  Nfd7 {[%clk 0:02:58]} 5. d4 {[%clk 0:02:56]}  c5 {[%clk 0:02:58]} 6. dxc5 {[%clk 0:02:55]}  Nc6 {[%clk 0:02:59]} 7. Bf4 {[%clk 0:02:54]}  Be7 {[%clk 0:02:57]} 8. a3 {[%clk 0:02:49]}  Nxc5 {[%clk 0:02:55]} 9. Be2 {[%clk 0:02:46]}  O-O {[%clk 0:02:52]} 10. O-O {[%clk 0:02:44]}  f5 {[%clk 0:02:47]} 11. exf6 {[%clk 0:02:43]}  Bxf6 {[%clk 0:02:47]} 12. Bg3 {[%clk 0:02:41]}  a6 {[%clk 0:02:44]} 13. Re1 {[%clk 0:02:34]}  b5 {[%clk 0:02:34]} 14. Bf1 {[%clk 0:02:27]}  Ra7 {[%clk 0:02:27]} 15. Qd2 {[%clk 0:02:25]}  Kh8 {[%clk 0:02:13]} 16. Rad1 {[%clk 0:02:22]}  Raf7 {[%clk 0:01:57]} 17. b4 {[%clk 0:02:13]}  Nd7 {[%clk 0:01:50]} 18. Bd3 {[%clk 0:02:08]}  Nb6 {[%clk 0:01:37]} 19. Ne2 {[%clk 0:02:01]}  Nc4 {[%clk 0:01:35]} 20. Bxc4 {[%clk 0:01:59]}  bxc4 {[%clk 0:01:35]} 21. Ned4 {[%clk 0:01:49]}  Nxd4 {[%clk 0:01:27]} 22. Nxd4 {[%clk 0:01:50]}  Qb6 {[%clk 0:01:26]} 23. Kh1 {[%clk 0:01:38]}  h6 {[%clk 0:01:12]} 24. f3 {[%clk 0:01:36]}  Bd7 {[%clk 0:00:58]} 25. Bf2 {[%clk 0:01:33]}  Qb8 {[%clk 0:00:55]} 26. Nxe6 {[%clk 0:01:29]}  Bxe6 {[%clk 0:00:54]} 27. Rxe6 {[%clk 0:01:29]}  d4 {[%clk 0:00:21]} 28. Bxd4 {[%clk 0:01:27]}  c3 {[%clk 0:00:22]} 29. Qxc3 {[%clk 0:01:24]}  Rd7 {[%clk 0:00:19]} 30. Re4 {[%clk 0:01:16]}  Rfd8 {[%clk 0:00:19]} 31. Qe3 {[%clk 0:01:07]}  Bxd4 {[%clk 0:00:18]} 32. Rexd4 {[%clk 0:01:04]}  Rxd4 {[%clk 0:00:18]} 33. Rxd4 {[%clk 0:01:02]}  Re8 {[%clk 0:00:18]} 34. Qd2 {[%clk 0:01:00]}  Qc7 {[%clk 0:00:15]} 35. c4 {[%clk 0:00:58]}  Qe7 {[%clk 0:00:09]} 36. h3 {[%clk 0:00:56]}  Qe5 {[%clk 0:00:07]} 37. Rd8 {[%clk 0:00:52]}  Rxd8 {[%clk 0:00:06]} 38. Qxd8+ {[%clk 0:00:51]}  Kh7 {[%clk 0:00:06]} 39. Qd3+ {[%clk 0:00:49]}  Kh8 {[%clk 0:00:06]} 40. Qe4 {[%clk 0:00:49]}  Qa1+ {[%clk 0:00:06]} 41. Kh2 {[%clk 0:00:48]}  Qxa3 {[%clk 0:00:06]} 42. Qe8+ {[%clk 0:00:47]}  Kh7 {[%clk 0:00:06]} 43. Qe4+ {[%clk 0:00:46]}  Kh8 {[%clk 0:00:06]} 44. Qe8+ {[%clk 0:00:46]}  Kh7 {[%clk 0:00:06]} 45. Qe4+ {[%clk 0:00:46]}  Kh8 {[%clk 0:00:06]} 1/2-1/2


[Site "https://www.chess.com"]

[Event "Titled Tuesday Blitz April 05 Early 2022"]
[White "Bas Mas, Jose Joaquin"]
[Black "Rabineau, Clement"]
[WhiteFideId "22219064"]
[BlackFideId "628891"]
[WhiteElo "2212"]
[BlackElo "2237"]
[Result "0-1"]
[Round "09"]
[TimeControl "180+1"]
[Date "2022.04.05"]
[WhiteClock "0:00:36"]
[BlackClock "0:00:07"]

1. e4 {[%clk 0:03:00]}  d6 {[%clk 0:03:00]} 2. Nc3 {[%clk 0:03:00]}  g6 {[%clk 0:03:01]} 3. d4 {[%clk 0:03:00]}  Bg7 {[%clk 0:03:01]} 4. h3 {[%clk 0:03:00]}  a6 {[%clk 0:03:01]} 5. a4 {[%clk 0:02:59]}  Nc6 {[%clk 0:03:00]} 6. Nf3 {[%clk 0:02:58]}  Nf6 {[%clk 0:02:59]} 7. Be3 {[%clk 0:02:58]}  O-O {[%clk 0:02:57]} 8. e5 {[%clk 0:02:59]}  Nd7 {[%clk 0:02:42]} 9. e6 {[%clk 0:02:46]}  fxe6 {[%clk 0:02:33]} 10. Bc4 {[%clk 0:02:46]}  d5 {[%clk 0:02:20]} 11. Be2 {[%clk 0:02:43]}  Nf6 {[%clk 0:02:09]} 12. O-O {[%clk 0:02:40]}  Ne8 {[%clk 0:01:56]} 13. Re1 {[%clk 0:02:33]}  Nd6 {[%clk 0:01:56]} 14. Ng5 {[%clk 0:02:25]}  Nf5 {[%clk 0:01:51]} 15. Bg4 {[%clk 0:02:07]}  h6 {[%clk 0:01:39]} 16. Nf3 {[%clk 0:01:57]}  e5 {[%clk 0:01:20]} 17. dxe5 {[%clk 0:01:46]}  Nxe3 {[%clk 0:01:05]} 18. Rxe3 {[%clk 0:01:44]}  Bxg4 {[%clk 0:00:58]} 19. hxg4 {[%clk 0:01:44]}  e6 {[%clk 0:00:53]} 20. Ne2 {[%clk 0:01:36]}  Qe7 {[%clk 0:00:44]} 21. c3 {[%clk 0:01:36]}  Rf7 {[%clk 0:00:42]} 22. Qb3 {[%clk 0:01:31]}  Na5 {[%clk 0:00:37]} 23. Qb4 {[%clk 0:01:27]}  Qxb4 {[%clk 0:00:36]} 24. cxb4 {[%clk 0:01:28]}  Nc4 {[%clk 0:00:36]} 25. Rc3 {[%clk 0:01:28]}  Nxe5 {[%clk 0:00:21]} 26. Nfd4 {[%clk 0:01:19]}  Nxg4 {[%clk 0:00:15]} 27. f3 {[%clk 0:01:17]}  Ne5 {[%clk 0:00:12]} 28. Rac1 {[%clk 0:01:16]}  c6 {[%clk 0:00:13]} 29. b5 {[%clk 0:01:14]}  axb5 {[%clk 0:00:13]} 30. a5 {[%clk 0:01:15]}  Nd7 {[%clk 0:00:13]} 31. Re3 {[%clk 0:01:12]}  e5 {[%clk 0:00:13]} 32. Ne6 {[%clk 0:01:11]}  Re7 {[%clk 0:00:11]} 33. Nc7 {[%clk 0:01:01]}  Rxa5 {[%clk 0:00:10]} 34. f4 {[%clk 0:01:01]}  Ra2 {[%clk 0:00:10]} 35. Rc2 {[%clk 0:00:56]}  Kf7 {[%clk 0:00:10]} 36. fxe5 {[%clk 0:00:54]}  Rxe5 {[%clk 0:00:11]} 37. Rf3+ {[%clk 0:00:54]}  Rf5 {[%clk 0:00:11]} 38. Ng3 {[%clk 0:00:52]}  Rxf3 {[%clk 0:00:10]} 39. gxf3 {[%clk 0:00:53]}  Rxb2 {[%clk 0:00:10]} 40. Rc1 {[%clk 0:00:51]}  Ne5 {[%clk 0:00:10]} 41. Kf1 {[%clk 0:00:48]}  Nxf3 {[%clk 0:00:10]} 42. Ne2 {[%clk 0:00:48]}  g5 {[%clk 0:00:10]} 43. Ra1 {[%clk 0:00:47]}  Rxe2 {[%clk 0:00:09]} 44. Ra7 {[%clk 0:00:44]}  Re3 {[%clk 0:00:09]} 45. Rxb7 {[%clk 0:00:44]}  Kg6 {[%clk 0:00:10]} 46. Kf2 {[%clk 0:00:40]}  Rb3 {[%clk 0:00:09]} 47. Ne8 {[%clk 0:00:38]}  Bd4+ {[%clk 0:00:08]} 48. Ke2 {[%clk 0:00:37]}  Re3+ {[%clk 0:00:07]} 49. Kf1 {[%clk 0:00:36]}  Rxe8 {[%clk 0:00:07]} 0-1


[Site "https://www.chess.com"]

[Event "Titled Tuesday Blitz April 05 Early 2022"]
[White "Brodowski, Piotr"]
[Black "Vasquez Schroeder, Rodrigo"]
[WhiteFideId "1124480"]
[BlackFideId "3400042"]
[WhiteElo "2422"]
[BlackElo "2561"]
[Result "0-1"]
[Round "09"]
[TimeControl "180+1"]
[Date "2022.04.05"]
[WhiteClock "0:00:04"]
[BlackClock "0:01:43"]

1. c4 {[%clk 0:02:52]}  c5 {[%clk 0:02:59]} 2. Nc3 {[%clk 0:02:44]}  Nc6 {[%clk 0:02:56]} 3. g3 {[%clk 0:02:44]}  g6 {[%clk 0:02:57]} 4. Bg2 {[%clk 0:02:43]}  Bg7 {[%clk 0:02:57]} 5. Nf3 {[%clk 0:02:43]}  d6 {[%clk 0:02:57]} 6. O-O {[%clk 0:02:42]}  e6 {[%clk 0:02:58]} 7. b3 {[%clk 0:02:36]}  Nge7 {[%clk 0:02:58]} 8. Bb2 {[%clk 0:02:37]}  O-O {[%clk 0:02:58]} 9. e3 {[%clk 0:02:37]}  b6 {[%clk 0:02:58]} 10. d4 {[%clk 0:02:37]}  Bb7 {[%clk 0:02:58]} 11. d5 {[%clk 0:02:31]}  exd5 {[%clk 0:02:56]} 12. cxd5 {[%clk 0:02:32]}  Nb4 {[%clk 0:02:48]} 13. e4 {[%clk 0:02:32]}  Ba6 {[%clk 0:02:45]} 14. Rb1 {[%clk 0:02:09]}  Bd3 {[%clk 0:02:39]} 15. a3 {[%clk 0:02:07]}  Bxb1 {[%clk 0:02:36]} 16. Qxb1 {[%clk 0:00:14]}  Na6 {[%clk 0:02:30]} 17. Rd1 {[%clk 0:00:15]}  Nc8 {[%clk 0:02:25]} 18. e5 {[%clk 0:00:15]}  Nc7 {[%clk 0:02:21]} 19. Ne4 {[%clk 0:00:14]}  Ne8 {[%clk 0:02:13]} 20. e6 {[%clk 0:00:07]}  f6 {[%clk 0:02:03]} 21. h4 {[%clk 0:00:05]}  Ne7 {[%clk 0:01:59]} 22. Bc3 {[%clk 0:00:03]}  f5 {[%clk 0:01:57]} 23. Neg5 {[%clk 0:00:03]}  Bxc3 {[%clk 0:01:56]} 24. h5 {[%clk 0:00:02]}  Bf6 {[%clk 0:01:55]} 25. hxg6 {[%clk 0:00:02]}  hxg6 {[%clk 0:01:54]} 26. Qc1 {[%clk 0:00:03]}  Kg7 {[%clk 0:01:52]} 27. Qf4 {[%clk 0:00:03]}  Bxg5 {[%clk 0:01:51]} 28. Nxg5 {[%clk 0:00:03]}  Nf6 {[%clk 0:01:51]} 29. Nf7 {[%clk 0:00:02]}  Rxf7 {[%clk 0:01:51]} 30. exf7 {[%clk 0:00:03]}  Kxf7 {[%clk 0:01:51]} 31. Qe3 {[%clk 0:00:04]}  Qd7 {[%clk 0:01:50]} 32. Re1 {[%clk 0:00:04]}  Re8 {[%clk 0:01:50]} 33. Qh6 {[%clk 0:00:04]}  Neg8 {[%clk 0:01:49]} 34. Qc1 {[%clk 0:00:02]}  Rxe1+ {[%clk 0:01:48]} 35. Qxe1 {[%clk 0:00:03]}  Ne7 {[%clk 0:01:47]} 36. Qd2 {[%clk 0:00:03]}  Qb7 {[%clk 0:01:46]} 37. Qh6 {[%clk 0:00:02]}  Nexd5 {[%clk 0:01:46]} 38. g4 {[%clk 0:00:03]}  fxg4 {[%clk 0:01:45]} 39. Qg5 {[%clk 0:00:02]}  b5 {[%clk 0:01:44]} 40. a4 {[%clk 0:00:02]}  a6 {[%clk 0:01:44]} 41. axb5 {[%clk 0:00:02]}  axb5 {[%clk 0:01:44]} 42. Qd2 {[%clk 0:00:02]}  Qc6 {[%clk 0:01:44]} 43. Qd3 {[%clk 0:00:02]}  c4 {[%clk 0:01:44]} 44. bxc4 {[%clk 0:00:03]}  bxc4 {[%clk 0:01:45]} 45. Qd4 {[%clk 0:00:04]}  c3 {[%clk 0:01:45]} 46. Qa7+ {[%clk 0:00:04]}  Ke6 {[%clk 0:01:44]} 47. Qb8 {[%clk 0:00:04]}  c2 {[%clk 0:01:44]} 48. Qe8+ {[%clk 0:00:04]}  Qxe8 {[%clk 0:01:43]} 0-1


[Site "https://www.chess.com"]